Workbook

Sheet min_reb
E1: The ratio increases with velocity, but a general rule of thumb is that comp should be stiffer than reb at low velocities..
E2: The ratio varies from less than 1 at low velocities to slightly more than 2 at higher velocities.
A3: 5-6-24 | E3: Using rule of thumb that reb should be lighter than comp at low velocities.
A4: We created dynoshock_press | E4: We can assume there is a min amount of reb needed depending on the application. And there is a bare minimum needed for any application.
A5: TABLE and are redoing the
A6: comments on 'minimum reb
A7: force needed for any | E7: Depending on the application, we can assume there is a min amount of reb and comp force needed
A8: application'. | E8: The reb comp ratio [r/c ratio] shows a relationship between reb and comp forces at specific velocities.
E9: The ratio increases with velocity, but a general rule of thumb is that reb should be faster than comp at low velocities.
A10: a_open_press_linear.php | E10: For example: 55 lbs reb force, 69 lbs comp force (55 / 69 = .80)
E12: r/c ratio less than 1 . . . comp is stiffer
E13: min reb | F13: 45 | G13: 50 | H13: 55 | I13: 60 | J13: 65
E14: comp | F14: =F13/F15 -> 50 | G14: =G13/G15 -> 55.55555556 | H14: =H13/H15 -> 61.11111111 | I14: =I13/I15 -> 66.66666667 | J14: =J13/J15 -> 72.22222222
E15: r/c ratio | F15: 0.9 | G15: 0.9 | H15: 0.9 | I15: 0.9 | J15: 0.9
E17: min reb | F17: 45 | G17: 50 | H17: 55 | I17: 60 | J17: 65
E18: comp | F18: =F17/F19 -> 56.25 | G18: =G17/G19 -> 62.5 | H18: =H17/H19 -> 68.75 | I18: =I17/I19 -> 75 | J18: =J17/J19 -> 81.25
E19: r/c ratio | F19: 0.8 | G19: 0.8 | H19: 0.8 | I19: 0.8 | J19: 0.8
E21: min reb | F21: 45 | G21: 50 | H21: 55 | I21: 60 | J21: 65
E22: comp | F22: =F21/F23 -> 64.28571429 | G22: =G21/G23 -> 71.42857143 | H22: 78.57142857 | I22: 85.71428571 | J22: 92.85714286
E23: r/c ratio | F23: 0.7 | G23: 0.7 | H23: 0.7 | I23: 0.7 | J23: 0.7

Sheet Sheet2
D3: ips | E3: ro wogas | F3: co wogas | G3: r/c ratio
E4: [actual] | F4: [actual] | G4: [actual]
D5: 1
D6: 2 | E6: -55.7 | F6: 74.1 | G6: 0.75
D7: 3 | E7: -75.2 | F7: 95 | G7: 0.79
D8: 4 | E8: -97.3 | F8: 112.2 | G8: 0.87
D9: 5 | E9: -121.4 | F9: 128.4 | G9: 0.95
D10: 10 | E10: -245.8 | F10: 204 | G10: 1.21
D11: 20 | E11: -494.2 | F11: 345.4 | G11: 1.43
D12: 30 | E12: -739.9 | F12: 467.3 | G12: 1.58
D13: 40 | E13: -999 | F13: 580.3 | G13: 1.72
D14: 50 | E14: -1253.2 | F14: 683.4 | G14: 1.83
D18: ips | E18: ro wogas | F18: co wogas | G18: r/c ratio
E19: [linear] | F19: [linear] | G19: [linear]
D20: 1
D21: 2 | E21: -55.7 | F21: 74.1 | G21: 0.75
D22: 3 | E22: -80.6 | F22: 87.2 | G22: 0.93
D23: 4 | E23: -105.6 | F23: 97.9 | G23: 1.08
D24: 5 | E24: -130.5 | F24: 110.3 | G24: 1.18
D25: 10 | E25: -255.3 | F25: 174.4 | G25: 1.46
D26: 20 | E26: -504.8 | F26: 302.4 | G26: 1.67
D27: 30 | E27: -754.2 | F27: 428.2 | G27: 1.76
D28: 40 | E28: -1003.7 | F28: 556.2 | G28: 1.8
D29: 50 | E29: -1253.2 | F29: 683.3 | G29: 1.83
D33: ips | E33: ro wogas | F33: ro wogas | G33: lb diff
E34: [actual] | F34: [linear] | G34: [1-2]
B35: =-E35 -> -35.1 | D35: 1 | E35: 35.1
B36: =-E36 -> -55.7 | C36: -55.7 | D36: 2 | E36: 55.7 | F36: 55.7 | G36: 0
B37: -75.2 | C37: -80.6 | D37: 3 | E37: 75.2 | F37: 80.6 | G37: -5.4
B38: -97.3 | C38: -105.6 | D38: 4 | E38: 97.3 | F38: 105.6 | G38: -8.3
B39: -121.4 | C39: -130.5 | D39: 5 | E39: 121.4 | F39: 130.5 | G39: -9.2
B40: -245.8 | C40: -255.3 | D40: 10 | E40: 245.8 | F40: 255.3 | G40: -9.5
B41: -494.2 | C41: -504.8 | D41: 20 | E41: 494.2 | F41: 504.8 | G41: -10.5
B42: -739.9 | C42: -754.2 | D42: 30 | E42: 739.9 | F42: 754.2 | G42: -14.4
B43: -999 | C43: -1003.7 | D43: 40 | E43: 999 | F43: 1003.7 | G43: -4.7
B44: -1253.2 | C44: -1253.2 | D44: 50 | E44: 1253.2 | F44: 1253.2 | G44: 0
D48: ips | E48: ro wogas | F48: ro wogas | G48: lb diff
E49: [actual] | F49: [linear] | G49: [1-2]
D50: 1 | E50: 35.1
D51: 2 | E51: 55.7 | F51: 55.7 | G51: 0
D52: 3 | E52: 75.2 | F52: 80.6 | G52: -5.4
D53: 4 | E53: 97.3 | F53: 105.6 | G53: -8.3
D54: 5 | E54: 121.4 | F54: 130.5 | G54: -9.2
D55: 6 | E55: =intrp(D55,D36:D44,E36:E44) -> 146.28
D56: 7 | E56: =intrp(D56,D37:D45,E37:E45) -> 175.448
D57: 8 | E57: =intrp(D57,D38:D46,E38:E46) -> 200.512
D58: 9 | E58: =intrp(D58,D39:D47,E39:E47) -> 225.576
D59: 10 | E59: 245.8 | F59: 255.3 | G59: -9.5
D60: 20 | E60: 494.2 | F60: 504.8 | G60: -10.5
D61: 30 | E61: 739.9 | F61: 754.2 | G61: -14.4
D62: 40 | E62: 999 | F62: 1003.7 | G62: -4.7
D63: 50 | E63: 1253.2 | F63: 1253.2 | G63: 0

Sheet Sheet2 (2)
D3: ips | E3: ro wogas | F3: co wogas | G3: r/c ratio
E4: [actual] | F4: [actual] | G4: [actual]
D5: 1
D6: 2 | E6: -55.7 | F6: 74.1 | G6: 0.75
D7: 3 | E7: -75.2 | F7: 95 | G7: 0.79
D8: 4 | E8: -97.3 | F8: 112.2 | G8: 0.87
D9: 5 | E9: -121.4 | F9: 128.4 | G9: 0.95
D10: 10 | E10: -245.8 | F10: 204 | G10: 1.21
D11: 20 | E11: -494.2 | F11: 345.4 | G11: 1.43
D12: 30 | E12: -739.9 | F12: 467.3 | G12: 1.58
D13: 40 | E13: -999 | F13: 580.3 | G13: 1.72
D14: 50 | E14: -1253.2 | F14: 683.4 | G14: 1.83
D18: ips | E18: ro wogas | F18: co wogas | G18: r/c ratio
E19: [linear] | F19: [linear] | G19: [linear]
D20: 1
D21: 2 | E21: -55.7 | F21: 74.1 | G21: 0.75
D22: 3 | E22: -80.6 | F22: 87.2 | G22: 0.93
D23: 4 | E23: -105.6 | F23: 97.9 | G23: 1.08
D24: 5 | E24: -130.5 | F24: 110.3 | G24: 1.18
D25: 10 | E25: -255.3 | F25: 174.4 | G25: 1.46
D26: 20 | E26: -504.8 | F26: 302.4 | G26: 1.67
D27: 30 | E27: -754.2 | F27: 428.2 | G27: 1.76
D28: 40 | E28: -1003.7 | F28: 556.2 | G28: 1.8
D29: 50 | E29: -1253.2 | F29: 683.3 | G29: 1.83
D33: ips | E33: c force | F33: c force | G33: lb diff
E34: [actual] | F34: [linear] | G34: [1-2]
B35: =-E35 -> -31 | D35: 1 | E35: 31
B36: =-E36 -> -64.9 | C36: -64.9 | D36: 2 | E36: 64.9 | F36: 64.9 | G36: 0 | H36: =E36/F36 -> 1
B37: -84.5 | C37: -75.8 | D37: 3 | E37: 84.5 | F37: 75.8 | G37: 8.7 | H37: =E37/F37 -> 1.114775726
B38: -102.3 | C38: -86.7 | D38: 4 | E38: 102.3 | F38: 86.7 | G38: 15.5 | H38: 1.179930796
B39: -117.4 | C39: -97.6 | D39: 5 | E39: 117.4 | F39: 97.6 | G39: 19.7 | H39: 1.202868852
B40: -181.2 | C40: -152.1 | D40: 10 | E40: 181.2 | F40: 152.1 | G40: 29.1 | H40: 1.191321499 | J40: =152*1.2 -> 182.4
B41: -295.1 | C41: -261.2 | D41: 20 | E41: 295.1 | F41: 261.2 | G41: 33.9 | H41: 1.129785605
B42: -400.5 | C42: -370.2 | D42: 30 | E42: 400.5 | F42: 370.2 | G42: 30.3 | H42: 1.08184765
B43: -498.3 | C43: -479.3 | D43: 40 | E43: 498.3 | F43: 479.3 | G43: 19 | H43: 1.039641143
B44: -588.3 | C44: -588.3 | D44: 50 | E44: 588.3 | F44: 588.3 | G44: 0 | H44: 1
D48: ips | E48: ro wogas | F48: ro wogas | G48: lb diff
E49: [actual] | F49: [linear] | G49: [1-2]
D50: 1 | E50: 31
D51: 2 | E51: 64.9 | F51: 64.9 | G51: 0
D52: 3 | E52: 84.5 | F52: 75.8 | G52: 8.7
D53: 4 | E53: 102.3 | F53: 86.7 | G53: 15.5
D54: 5 | E54: 117.4 | F54: 97.6 | G54: 19.7
D55: 6 | E55: =intrp($D55,$D$36:$D$40,E$36:E$40) -> 130.16 | F55: =intrp($D55,$D$36:$D$40,F$36:F$40) -> 108.5 | G55: =E55-F55 -> 21.66
D56: 7 | E56: =intrp($D56,$D$36:$D$40,E$36:E$40) -> 142.92 | F56: =intrp($D56,$D$36:$D$40,F$36:F$40) -> 119.4 | G56: =E56-F56 -> 23.52
D57: 8 | E57: =intrp($D57,$D$36:$D$40,E$36:E$40) -> 155.68 | F57: =intrp($D57,$D$36:$D$40,F$36:F$40) -> 130.3 | G57: 25.38
D58: 9 | E58: =intrp($D58,$D$36:$D$40,E$36:E$40) -> 168.44 | F58: =intrp($D58,$D$36:$D$40,F$36:F$40) -> 141.2 | G58: 27.24
D59: 10 | E59: 181.2 | F59: 152.1 | G59: 29.1
D60: 20 | E60: 295.1 | F60: 261.2 | G60: 33.9
D61: 30 | E61: 400.5 | F61: 370.2 | G61: 30.3
D62: 40 | E62: 498.3 | F62: 479.3 | G62: 19
D63: 50 | E63: 588.3 | F63: 588.3 | G63: 0
